Workbook

Sheet Sheet1
A1: 기초생활보장수급자 현황(19.1.1.기준)
A3: 읍면동 | B3: 계 | D3: 생계 | F3: 의료 | H3: 주거 | J3: 교육
B4: 가구 | C4: 가구원 | D4: 가구 | E4: 가구원 | F4: 가구 | G4: 가구원 | H4: 가구 | I4: 가구원 | J4: 가구 | K4: 가구원
A5: 계 | B5: =SUM(D5+F5+H5+J5) -> 7,666 | C5: =SUM(E5+G5+I5+K5) -> 10,612 | D5: =SUM(D6:D32) -> 5,567 | E5: 7,537 | F5: 508 | G5: 812 | H5: 1,067 | I5: 1,535 | J5: 524 | K5: 728
A6: 돌산 | B6: =SUM(D6+F6+H6+J6) -> 363 | C6: =SUM(E6+G6+I6+K6) -> 492 | D6: 279 | E6: 374 | F6: 18 | G6: 26 | H6: 33 | I6: 43 | J6: 33 | K6: 49
A7: 소라 | B7: =SUM(D7+F7+H7+J7) -> 514 | C7: 798 | D7: 362 | E7: 545 | F7: 34 | G7: 68 | H7: 85 | I7: 143 | J7: 33 | K7: 42
A8: 율촌 | B8: 234 | C8: 313 | D8: 188 | E8: 249 | F8: 19 | G8: 26 | H8: 19 | I8: 24 | J8: 8 | K8: 14
A9: 화양 | B9: 227 | C9: 287 | D9: 182 | E9: 229 | F9: 18 | G9: 28 | H9: 19 | I9: 20 | J9: 8 | K9: 10
A10: 남 | B10: 188 | C10: 226 | D10: 139 | E10: 172 | F10: 7 | G10: 9 | H10: 41 | I10: 43 | J10: 1 | K10: 2
A11: 화정 | B11: =SUM(D11+F11+H11+J11) -> 88 | C11: =SUM(E11+G11+I11+K11) -> 113 | D11: 67 | E11: 82 | F11: 3 | G11: 6 | H11: 14 | I11: 18 | J11: 4 | K11: 7
A12: 삼산 | B12: 69 | C12: 89 | D12: 52 | E12: 67 | F12: 4 | G12: 4 | H12: 9 | I12: 13 | J12: 4 | K12: 5
A13: 동문 | B13: 213 | C13: 276 | D13: 167 | E13: 222 | F13: 12 | G13: 12 | H13: 22 | I13: 26 | J13: 12 | K13: 16
A14: 한려 | B14: 197 | C14: 265 | D14: 143 | E14: 183 | F14: 15 | G14: 22 | H14: 26 | I14: 37 | J14: 13 | K14: 23
A15: 중앙 | B15: 183 | C15: 228 | D15: 139 | E15: 170 | F15: 11 | G15: 12 | H15: 22 | I15: 32 | J15: 11 | K15: 14
A16: 충무 | B16: 267 | C16: 355 | D16: 202 | E16: 267 | F16: 13 | G16: 19 | H16: 39 | I16: 51 | J16: 13 | K16: 18
A17: 광림 | B17: =SUM(D17+F17+H17+J17) -> 287 | C17: =SUM(E17+G17+I17+K17) -> 391 | D17: 186 | E17: 251 | F17: 20 | G17: 33 | H17: 54 | I17: 67 | J17: 27 | K17: 40
A18: 서강 | B18: 187 | C18: 247 | D18: 106 | E18: 145 | F18: 18 | G18: 33 | H18: 60 | I18: 67 | J18: 3 | K18: 2
A19: 대교 | B19: 222 | C19: 292 | D19: 162 | E19: 204 | F19: 20 | G19: 41 | H19: 23 | I19: 26 | J19: 17 | K19: 21
A20: 국 | B20: =SUM(D20+F20+H20+J20) -> 305 | C20: =SUM(E20+G20+I20+K20) -> 435 | D20: 209 | E20: 277 | F20: 30 | G20: 47 | H20: 37 | I20: 62 | J20: 29 | K20: 49
A21: 월호 | B21: =SUM(D21+F21+H21+J21) -> 124 | C21: =SUM(E21+G21+I21+K21) -> 162 | D21: 89 | E21: 126 | F21: 6 | G21: 6 | H21: 18 | I21: 21 | J21: 11 | K21: 9
A22: 여서 | B22: 258 | C22: 367 | D22: 151 | E22: 210 | F22: 15 | G22: 32 | H22: 45 | I22: 70 | J22: 47 | K22: 55
A23: 문수 | B23: 1,205 | C23: 1,541 | D23: 957 | E23: 1,206 | F23: 79 | G23: 111 | H23: 122 | I23: 155 | J23: 47 | K23: 69
A24: 미평 | B24: 584 | C24: 768 | D24: 452 | E24: 597 | F24: 35 | G24: 39 | H24: 63 | I24: 86 | J24: 34 | K24: 46
A25: 둔덕 | B25: 101 | C25: 187 | D25: 65 | E25: 113 | F25: 13 | G25: 31 | H25: 16 | I25: 36 | J25: 7 | K25: 7
A26: 만덕 | B26: 172 | C26: 253 | D26: 123 | E26: 170 | F26: 8 | G26: 16 | H26: 25 | I26: 43 | J26: 16 | K26: 24
A27: 쌍봉 | B27: 366 | C27: 560 | D27: 218 | E27: 324 | F27: 24 | G27: 40 | H27: 74 | I27: 116 | J27: 50 | K27: 80
A28: 시전 | B28: 325 | C28: 529 | D28: 194 | E28: 281 | F28: 18 | G28: 35 | H28: 81 | I28: 164 | J28: 32 | K28: 49
A29: 여천 | B29: 838 | C29: 1,230 | D29: 618 | E29: 912 | F29: 62 | G29: 105 | H29: 109 | I29: 156 | J29: 49 | K29: 57
A30: 주삼 | B30: 64 | C30: 109 | D30: 44 | E30: 76 | F30: 5 | G30: 9 | H30: 4 | I30: 8 | J30: 11 | K30: 16
A31: 삼일 | B31: 57 | C31: 67 | D31: 48 | E31: 57 | F31: 1 | G31: 2 | H31: 5 | I31: 6 | J31: 3 | K31: 2
A32: 묘도 | B32: 28 | C32: 32 | D32: 25 | E32: 28 | F32: 0 | G32: 0 | H32: 2 | I32: 2 | J32: 1 | K32: 2
